[Event "*** Titled Tuesday Blitz"]
[Site "Chess.com"]
[Date "2020.11.10"]
[Round "5"]
[White "ehrenfeld"]
[Black "IceBelka"]
[Result "0-1"]
[WhiteElo "2488"]
[BlackElo "2327"]
[TimeControl "180+1"]
[EndTime "10:59:30 PST"]
[Termination "IceBelka won on time"]

1. e4 {[%clk 0:03:00.9]} 1... c6 {[%clk 0:02:58.4]} 2. d4 {[%clk 0:03:00.2]}
2... d5 {[%clk 0:02:57.9]} 3. exd5 {[%clk 0:03:00.6]} 3... cxd5 {[%clk
0:02:55.4]} 4. Bd3 {[%clk 0:03:01.1]} 4... Nc6 {[%clk 0:02:46]} 5. c3 {[%clk
0:03:01.5]} 5... g6 {[%clk 0:02:38.3]} 6. Nf3 {[%clk 0:03:00.5]} 6... Bg7 {[%clk
0:02:36.8]} 7. O-O {[%clk 0:03:00.8]} 7... Nf6 {[%clk 0:02:35.3]} 8. Re1 {[%clk
0:03:00.7]} 8... O-O {[%clk 0:02:33.8]} 9. h3 {[%clk 0:02:57.6]} 9... Bf5 {[%clk
0:02:32.8]} 10. Bf1 {[%clk 0:02:57.1]} 10... Ne4 {[%clk 0:02:29.3]} 11. Nbd2
{[%clk 0:02:56.5]} 11... a6 {[%clk 0:02:17.8]} 12. Nxe4 {[%clk 0:02:54.2]} 12...
Bxe4 {[%clk 0:02:07]} 13. Bf4 {[%clk 0:02:42.1]} 13... b5 {[%clk 0:02:03.3]} 14.
Nd2 {[%clk 0:02:35]} 14... Bf5 {[%clk 0:02:01.5]} 15. a3 {[%clk 0:02:32.5]}
15... Na5 {[%clk 0:01:58.5]} 16. g4 {[%clk 0:02:25.5]} 16... Bd7 {[%clk
0:01:53]} 17. Qf3 {[%clk 0:02:21.9]} 17... e6 {[%clk 0:01:47.5]} 18. Re2 {[%clk
0:01:51]} 18... Rc8 {[%clk 0:01:46]} 19. Rae1 {[%clk 0:01:49.2]} 19... Bc6
{[%clk 0:01:36.1]} 20. Qg3 {[%clk 0:01:45.2]} 20... Qd7 {[%clk 0:01:33]} 21. Nf3
{[%clk 0:01:39.9]} 21... Nc4 {[%clk 0:01:27]} 22. Ne5 {[%clk 0:01:35]} 22...
Nxe5 {[%clk 0:01:25.4]} 23. Bxe5 {[%clk 0:01:34.6]} 23... a5 {[%clk 0:01:21.2]}
24. Re3 {[%clk 0:01:33.6]} 24... b4 {[%clk 0:01:20.3]} 25. axb4 {[%clk
0:01:31.3]} 25... axb4 {[%clk 0:01:21.2]} 26. Bd6 {[%clk 0:01:19.9]} 26... Rfe8
{[%clk 0:00:54.6]} 27. Bxb4 {[%clk 0:01:19.1]} 27... Bb5 {[%clk 0:00:55]} 28.
Bxb5 {[%clk 0:01:11.9]} 28... Qxb5 {[%clk 0:00:55.9]} 29. Ba3 {[%clk 0:01:04.4]}
29... Qb3 {[%clk 0:00:50]} 30. R1e2 {[%clk 0:00:59.4]} 30... Ra8 {[%clk
0:00:46.2]} 31. h4 {[%clk 0:00:55.1]} 31... Rec8 {[%clk 0:00:42.2]} 32. Kg2
{[%clk 0:00:54]} 32... Bh6 {[%clk 0:00:39]} 33. Rf3 {[%clk 0:00:47.4]} 33... Qd1
{[%clk 0:00:37]} 34. Qe5 {[%clk 0:00:44.8]} 34... Bg7 {[%clk 0:00:36.2]} 35. Qe3
{[%clk 0:00:44.2]} 35... Rcb8 {[%clk 0:00:29.8]} 36. h5 {[%clk 0:00:40]} 36...
Rxa3 {[%clk 0:00:27.5]} 37. bxa3 {[%clk 0:00:38.9]} 37... Rb1 {[%clk 0:00:27.3]}
38. Rh3 {[%clk 0:00:22.1]} 38... Bf8 {[%clk 0:00:18.7]} 39. hxg6 {[%clk
0:00:14.8]} 39... Qf1+ {[%clk 0:00:16.6]} 40. Kg3 {[%clk 0:00:11.4]} 40... Bd6+
{[%clk 0:00:17.2]} 41. f4 {[%clk 0:00:10.2]} 41... hxg6 {[%clk 0:00:16.6]} 42.
Rg2 {[%clk 0:00:07.4]} 42... Re1 {[%clk 0:00:13]} 43. Qf3 {[%clk 0:00:07.3]}
43... Qc4 {[%clk 0:00:08.8]} 44. Kh2 {[%clk 0:00:06.9]} 44... Re4 {[%clk
0:00:06.7]} 45. Kh1 {[%clk 0:00:03.1]} 45... Bxf4 {[%clk 0:00:07.3]} 46. Rgh2
{[%clk 0:00:01.7]} 46... Re1+ {[%clk 0:00:07.4]} 0-1

[Event "*** Titled Tuesday Blitz"]
[Site "Chess.com"]
[Date "2020.11.10"]
[Round "5"]
[White "Karateloru"]
[Black "talman67"]
[Result "1-0"]
[WhiteElo "2728"]
[BlackElo "2544"]
[TimeControl "180+1"]
[EndTime "10:59:34 PST"]
[Termination "Karateloru won by checkmate"]

1. e4 {[%clk 0:03:00.9]} 1... e5 {[%clk 0:02:59.1]} 2. Nf3 {[%clk 0:03:00.7]}
2... Nc6 {[%clk 0:02:59.8]} 3. d4 {[%clk 0:02:59.6]} 3... exd4 {[%clk
0:03:00.7]} 4. Nxd4 {[%clk 0:03:00.3]} 4... Nf6 {[%clk 0:03:01]} 5. Nc3 {[%clk
0:02:58.8]} 5... Bb4 {[%clk 0:03:00.3]} 6. Nxc6 {[%clk 0:02:59.2]} 6... bxc6
{[%clk 0:03:00.9]} 7. Bd3 {[%clk 0:02:58.7]} 7... O-O {[%clk 0:02:58.4]} 8. O-O
{[%clk 0:02:58.3]} 8... d5 {[%clk 0:02:59.1]} 9. exd5 {[%clk 0:02:58.6]} 9...
cxd5 {[%clk 0:02:59.7]} 10. Bg5 {[%clk 0:02:59.2]} 10... c6 {[%clk 0:02:55.7]}
11. Na4 {[%clk 0:02:57.6]} 11... h6 {[%clk 0:02:51.8]} 12. Bh4 {[%clk
0:02:57.1]} 12... Bd6 {[%clk 0:02:51.5]} 13. c4 {[%clk 0:02:55]} 13... Be6
{[%clk 0:02:30.3]} 14. cxd5 {[%clk 0:02:52.9]} 14... Bxd5 {[%clk 0:02:26.5]} 15.
Nc3 {[%clk 0:02:50.7]} 15... Be6 {[%clk 0:02:23.9]} 16. Bg3 {[%clk 0:02:46.3]}
16... Bxg3 {[%clk 0:02:20.3]} 17. hxg3 {[%clk 0:02:46.4]} 17... Rb8 {[%clk
0:02:21.2]} 18. b3 {[%clk 0:02:44.5]} 18... c5 {[%clk 0:02:18.7]} 19. Rc1 {[%clk
0:02:43.2]} 19... Qa5 {[%clk 0:02:16.3]} 20. Na4 {[%clk 0:02:42.3]} 20... Rbc8
{[%clk 0:02:15.8]} 21. Bc4 {[%clk 0:02:38.8]} 21... Rfd8 {[%clk 0:02:04.1]} 22.
Qe2 {[%clk 0:02:33.8]} 22... Bd7 {[%clk 0:01:42.3]} 23. Qe7 {[%clk 0:02:32.3]}
23... Bxa4 {[%clk 0:01:36]} 24. Qxf7+ {[%clk 0:02:25.7]} 24... Kh8 {[%clk
0:01:36.4]} 25. bxa4 {[%clk 0:02:25.5]} 25... Qxa4 {[%clk 0:01:36]} 26. Rfe1
{[%clk 0:02:20.6]} 26... Rd7 {[%clk 0:01:09.6]} 27. Qg6 {[%clk 0:02:19]} 27...
Rcd8 {[%clk 0:01:08.5]} 28. Bb3 {[%clk 0:02:07.2]} 28... Qa5 {[%clk 0:01:08.1]}
29. Re5 {[%clk 0:02:04.9]} 29... Rc7 {[%clk 0:00:39.1]} 30. Re6 {[%clk
0:02:01.9]} 30... Qd2 {[%clk 0:00:36.9]} 31. Rd1 {[%clk 0:01:40.5]} 31... Qxd1+
{[%clk 0:00:37.5]} 32. Bxd1 {[%clk 0:01:41.1]} 32... Rxd1+ {[%clk 0:00:38.2]}
33. Kh2 {[%clk 0:01:41.7]} 33... c4 {[%clk 0:00:38]} 34. Rxf6 {[%clk 0:01:27.1]}
34... gxf6 {[%clk 0:00:38]} 35. Qxf6+ {[%clk 0:01:27.6]} 35... Rg7 {[%clk
0:00:15.3]} 36. Qf8+ {[%clk 0:01:26.7]} 36... Kh7 {[%clk 0:00:14.6]} 37. Qf5+
{[%clk 0:01:25.9]} 37... Rg6 {[%clk 0:00:10.8]} 38. Qf7+ {[%clk 0:01:22.7]}
38... Rg7 {[%clk 0:00:11.5]} 39. Qxc4 {[%clk 0:01:22.5]} 39... Rd2 {[%clk
0:00:12.2]} 40. f3 {[%clk 0:01:17.8]} 40... Re7 {[%clk 0:00:11.2]} 41. g4 {[%clk
0:01:13.1]} 41... Ree2 {[%clk 0:00:10.8]} 42. Qf7+ {[%clk 0:01:08.6]} 42... Kh8
{[%clk 0:00:10.7]} 43. Qxa7 {[%clk 0:01:08]} 43... Rxg2+ {[%clk 0:00:10]} 44.
Kh3 {[%clk 0:01:08.3]} 44... Rxa2 {[%clk 0:00:10.3]} 45. Qb8+ {[%clk 0:01:07.5]}
45... Kh7 {[%clk 0:00:10.3]} 46. Qc7+ {[%clk 0:01:06.8]} 46... Kh8 {[%clk
0:00:09.3]} 47. Qd8+ {[%clk 0:01:05.4]} 47... Kg7 {[%clk 0:00:09.4]} 48. Qe7+
{[%clk 0:01:05.2]} 48... Kh8 {[%clk 0:00:08.3]} 49. Kh4 {[%clk 0:01:00.3]} 49...
Rge2 {[%clk 0:00:02.6]} 50. Qf8+ {[%clk 0:00:59]} 50... Kh7 {[%clk 0:00:02.7]}
51. Qf7+ {[%clk 0:00:59.2]} 51... Kh8 {[%clk 0:00:03]} 52. Qf6+ {[%clk
0:00:51.4]} 52... Kh7 {[%clk 0:00:02.7]} 53. Qf5+ {[%clk 0:00:51.5]} 53... Kg7
{[%clk 0:00:01.9]} 54. Qd7+ {[%clk 0:00:50.7]} 54... Kh8 {[%clk 0:00:01.8]} 55.
Kh5 {[%clk 0:00:45]} 55... Rh2+ {[%clk 0:00:01.4]} 56. Kg6 {[%clk 0:00:44.9]}
56... Ra6+ {[%clk 0:00:01.9]} 57. Kf7 {[%clk 0:00:44.9]} 57... Rha2 {[%clk
0:00:01.4]} 58. Qd4+ {[%clk 0:00:44.1]} 58... Kh7 {[%clk 0:00:02.3]} 59. Qg7#
{[%clk 0:00:44.2]} 1-0

[Event "*** Titled Tuesday Blitz"]
[Site "Chess.com"]
[Date "2020.11.10"]
[Round "5"]
[White "The_Machine04"]
[Black "Love_craft"]
[Result "0-1"]
[WhiteElo "2292"]
[BlackElo "2583"]
[TimeControl "180+1"]
[EndTime "10:59:35 PST"]
[Termination "Love_craft won by resignation"]

1. d4 {[%clk 0:03:00.7]} 1... Nf6 {[%clk 0:02:59.8]} 2. Bg5 {[%clk 0:02:59.8]}
2... g6 {[%clk 0:02:56.5]} 3. Bxf6 {[%clk 0:02:59.1]} 3... exf6 {[%clk
0:02:57.4]} 4. g3 {[%clk 0:02:59.8]} 4... Bg7 {[%clk 0:02:58.3]} 5. Bg2 {[%clk
0:03:00.1]} 5... h5 {[%clk 0:02:59.2]} 6. e3 {[%clk 0:03:00.6]} 6... h4 {[%clk
0:02:58.8]} 7. c4 {[%clk 0:02:59.7]} 7... d6 {[%clk 0:02:56.7]} 8. Nc3 {[%clk
0:02:58.1]} 8... h3 {[%clk 0:02:55.4]} 9. Bf3 {[%clk 0:02:54.3]} 9... c6 {[%clk
0:02:46.2]} 10. Nge2 {[%clk 0:02:52.7]} 10... f5 {[%clk 0:02:45.1]} 11. b4
{[%clk 0:02:44.8]} 11... a5 {[%clk 0:02:43.2]} 12. b5 {[%clk 0:02:39.2]} 12...
Qc7 {[%clk 0:02:29.3]} 13. a4 {[%clk 0:02:35.4]} 13... Be6 {[%clk 0:02:22.9]}
14. Qd3 {[%clk 0:02:16.5]} 14... g5 {[%clk 0:02:10]} 15. O-O {[%clk 0:02:11.6]}
15... O-O {[%clk 0:01:56.5]} 16. Rfc1 {[%clk 0:01:56.6]} 16... Qe7 {[%clk
0:01:41]} 17. Rab1 {[%clk 0:01:45.1]} 17... Re8 {[%clk 0:01:30.5]} 18. Rb2
{[%clk 0:01:34.7]} 18... Bd7 {[%clk 0:01:28.8]} 19. Rcb1 {[%clk 0:01:30.2]}
19... Qf6 {[%clk 0:01:28.6]} 20. bxc6 {[%clk 0:01:17.4]} 20... bxc6 {[%clk
0:01:20.9]} 21. Rb7 {[%clk 0:01:10.5]} 21... Rc8 {[%clk 0:01:02.2]} 22. R1b2
{[%clk 0:00:56.4]} 22... Be8 {[%clk 0:01:01.2]} 23. Qb1 {[%clk 0:00:50]} 23...
Na6 {[%clk 0:01:01.3]} 24. Na2 {[%clk 0:00:45.8]} 24... Bf8 {[%clk 0:00:35.1]}
25. R2b6 {[%clk 0:00:35.5]} 25... f4 {[%clk 0:00:23.9]} 26. exf4 {[%clk
0:00:28.6]} 26... gxf4 {[%clk 0:00:24.8]} 27. Qe4 {[%clk 0:00:23.8]} 27... fxg3
{[%clk 0:00:20.6]} 28. hxg3 {[%clk 0:00:24.7]} 28... Nb4 {[%clk 0:00:20.2]} 29.
Nxb4 {[%clk 0:00:23.8]} 29... axb4 {[%clk 0:00:21.1]} 30. Rxb4 {[%clk 0:00:24]}
30... c5 {[%clk 0:00:20.9]} 31. dxc5 {[%clk 0:00:23.4]} 31... dxc5 {[%clk
0:00:18.7]} 32. Rb1 {[%clk 0:00:23]} 32... Bg7 {[%clk 0:00:13.8]} 33. Re7 {[%clk
0:00:16.9]} 33... Bc6 {[%clk 0:00:12.8]} 34. Qxc6 {[%clk 0:00:13.4]} 34... Rxc6
{[%clk 0:00:13.7]} 35. Bxc6 {[%clk 0:00:13.3]} 35... Qxc6 {[%clk 0:00:14.2]} 36.
Nf4 {[%clk 0:00:13.3]} 36... Qxa4 {[%clk 0:00:10.6]} 37. Rc1 {[%clk 0:00:09.4]}
37... Qa3 {[%clk 0:00:09.2]} 38. Ree1 {[%clk 0:00:08.3]} 38... Bh6 {[%clk
0:00:04.3]} 39. Kh2 {[%clk 0:00:02.6]} 39... Bxf4 {[%clk 0:00:04.3]} 40. gxf4
{[%clk 0:00:03.5]} 40... Qf3 {[%clk 0:00:04]} 41. Rg1+ {[%clk 0:00:03]} 41...
Kf8 {[%clk 0:00:04.1]} 42. Rcf1 {[%clk 0:00:02.5]} 42... Qxf4+ {[%clk
0:00:04.1]} 43. Rg3 {[%clk 0:00:03.3]} 43... Ra3 {[%clk 0:00:03.9]} 44. Kxh3
{[%clk 0:00:04.2]} 44... Rxg3+ {[%clk 0:00:03.9]} 45. fxg3 {[%clk 0:00:05.1]}
45... Qxf1+ {[%clk 0:00:04.2]} 46. Kh4 {[%clk 0:00:05.5]} 46... Qxc4+ {[%clk
0:00:05.1]} 0-1

[Event "*** Titled Tuesday Blitz"]
[Site "Chess.com"]
[Date "2020.11.10"]
[Round "5"]
[White "MokshanovAlexey"]
[Black "Anton_Demchenko"]
[Result "0-1"]
[WhiteElo "2613"]
[BlackElo "2841"]
[TimeControl "180+1"]
[EndTime "10:59:38 PST"]
[Termination "Anton_Demchenko won on time"]

1. e4 {[%clk 0:03:00.9]} 1... g6 {[%clk 0:02:59.3]} 2. d4 {[%clk 0:02:59.7]}
2... d6 {[%clk 0:03:00]} 3. Nf3 {[%clk 0:02:56.6]} 3... Nf6 {[%clk 0:02:59.6]}
4. Nc3 {[%clk 0:02:56.6]} 4... Bg7 {[%clk 0:03:00.1]} 5. h3 {[%clk 0:02:57]}
5... O-O {[%clk 0:02:57.1]} 6. Be3 {[%clk 0:02:57.1]} 6... a6 {[%clk 0:02:56.3]}
7. Qd2 {[%clk 0:02:55.1]} 7... Nc6 {[%clk 0:02:56.2]} 8. Bd3 {[%clk 0:02:46.5]}
8... e5 {[%clk 0:02:50.1]} 9. O-O {[%clk 0:02:44.1]} 9... Bd7 {[%clk 0:01:37.4]}
10. Rfe1 {[%clk 0:02:43.1]} 10... Re8 {[%clk 0:01:34.3]} 11. Rad1 {[%clk
0:02:33.8]} 11... Qc8 {[%clk 0:01:32.6]} 12. dxe5 {[%clk 0:02:09.2]} 12... Nxe5
{[%clk 0:01:30.9]} 13. Nxe5 {[%clk 0:02:08.9]} 13... dxe5 {[%clk 0:01:31.8]} 14.
Bc4 {[%clk 0:02:04.6]} 14... b5 {[%clk 0:01:25.7]} 15. Bb3 {[%clk 0:02:04.6]}
15... Be6 {[%clk 0:01:15.4]} 16. Bc5 {[%clk 0:01:42.8]} 16... c6 {[%clk
0:01:07.4]} 17. Qe3 {[%clk 0:01:30]} 17... Nd7 {[%clk 0:00:52.9]} 18. Rd2 {[%clk
0:01:12.1]} 18... Nxc5 {[%clk 0:00:50.7]} 19. Qxc5 {[%clk 0:01:11.8]} 19... Bf8
{[%clk 0:00:51.5]} 20. Qe3 {[%clk 0:01:05.6]} 20... Bxb3 {[%clk 0:00:44.2]} 21.
axb3 {[%clk 0:01:05.2]} 21... Rd8 {[%clk 0:00:44.9]} 22. Red1 {[%clk 0:01:04.9]}
22... Rxd2 {[%clk 0:00:44]} 23. Qxd2 {[%clk 0:01:05.2]} 23... Bc5 {[%clk
0:00:30.4]} 24. Ne2 {[%clk 0:00:42.9]} 24... a5 {[%clk 0:00:30.3]} 25. Qc3
{[%clk 0:00:30.8]} 25... Bf8 {[%clk 0:00:24.3]} 26. Qd3 {[%clk 0:00:05.8]} 26...
a4 {[%clk 0:00:22.6]} 27. bxa4 {[%clk 0:00:05.8]} 27... Rxa4 {[%clk 0:00:22.9]}
28. b3 {[%clk 0:00:06.2]} 28... Ra8 {[%clk 0:00:19.9]} 29. Kh1 {[%clk 0:00:05]}
29... h5 {[%clk 0:00:19.1]} 30. f3 {[%clk 0:00:05.3]} 30... Qe6 {[%clk
0:00:18.6]} 31. Nc3 {[%clk 0:00:03.8]} 31... h4 {[%clk 0:00:18.4]} 32. Ne2
{[%clk 0:00:03.8]} 32... Bc5 {[%clk 0:00:17.6]} 33. c4 {[%clk 0:00:02.5]} 33...
b4 {[%clk 0:00:17.5]} 34. Nc1 {[%clk 0:00:02.1]} 34... Bd4 {[%clk 0:00:16.5]}
35. Ne2 {[%clk 0:00:01.7]} 35... Bc5 {[%clk 0:00:16.8]} 36. Qc2 {[%clk
0:00:01.7]} 36... Qf6 {[%clk 0:00:12.1]} 37. Qd2 {[%clk 0:00:01.9]} 37... Kg7
{[%clk 0:00:11]} 38. Nc1 {[%clk 0:00:02.1]} 38... Qe7 {[%clk 0:00:05.3]} 39. Nd3
{[%clk 0:00:02]} 39... Rd8 {[%clk 0:00:04.6]} 40. Qc2 {[%clk 0:00:01.2]} 40...
Bd4 {[%clk 0:00:04.7]} 41. Nc1 {[%clk 0:00:01.4]} 41... c5 {[%clk 0:00:04.2]}
42. Ne2 {[%clk 0:00:01.6]} 42... Qg5 {[%clk 0:00:03.8]} 43. Qd2 {[%clk
0:00:01.5]} 43... Qf6 {[%clk 0:00:03.4]} 44. Qe1 {[%clk 0:00:01.2]} 44... Ra8
{[%clk 0:00:03.1]} 45. Nc1 {[%clk 0:00:01.3]} 45... Bc3 {[%clk 0:00:03.2]} 46.
Qe2 {[%clk 0:00:01.2]} 46... Bd4 {[%clk 0:00:04.1]} 47. Nd3 {[%clk 0:00:01.5]}
47... Ra3 {[%clk 0:00:03.9]} 48. Qe1 {[%clk 0:00:01.6]} 48... Qg5 {[%clk
0:00:03.9]} 0-1

[Event "*** Titled Tuesday Blitz"]
[Site "Chess.com"]
[Date "2020.11.10"]
[Round "5"]
[White "zajka-molotok"]
[Black "Grieve72"]
[Result "1/2-1/2"]
[WhiteElo "2516"]
[BlackElo "2368"]
[TimeControl "180+1"]
[EndTime "10:59:39 PST"]
[Termination "Game drawn by repetition"]

1. e4 {[%clk 0:03:00.9]} 1... c5 {[%clk 0:02:58.3]} 2. Nf3 {[%clk 0:03:01.8]}
2... e6 {[%clk 0:02:58.2]} 3. Ng1 {[%clk 0:03:02.7]} 3... Nc6 {[%clk 0:02:53.7]}
4. c3 {[%clk 0:03:01.4]} 4... Nf6 {[%clk 0:02:51.9]} 5. d3 {[%clk 0:02:51.1]}
5... d5 {[%clk 0:02:51.1]} 6. Nd2 {[%clk 0:02:48.6]} 6... Be7 {[%clk 0:02:43.3]}
7. Ngf3 {[%clk 0:02:43.5]} 7... O-O {[%clk 0:02:43.3]} 8. e5 {[%clk 0:02:42.6]}
8... Nd7 {[%clk 0:02:34.1]} 9. d4 {[%clk 0:02:42.8]} 9... Qb6 {[%clk 0:02:14.8]}
10. Nb3 {[%clk 0:02:32.3]} 10... f6 {[%clk 0:02:09.6]} 11. exf6 {[%clk
0:02:13.2]} 11... Bxf6 {[%clk 0:02:04.1]} 12. dxc5 {[%clk 0:02:10.1]} 12... Qc7
{[%clk 0:01:32.1]} 13. Bd3 {[%clk 0:01:37.5]} 13... e5 {[%clk 0:01:22.9]} 14.
Be2 {[%clk 0:01:27.7]} 14... Ne7 {[%clk 0:01:13.5]} 15. Be3 {[%clk 0:01:24.4]}
15... Nb8 {[%clk 0:00:52.7]} 16. O-O {[%clk 0:01:19.7]} 16... Nbc6 {[%clk
0:00:52.3]} 17. h3 {[%clk 0:00:42]} 17... Bf5 {[%clk 0:00:49.9]} 18. Qd2 {[%clk
0:00:23.6]} 18... Rad8 {[%clk 0:00:48.9]} 19. Rad1 {[%clk 0:00:22.9]} 19... h6
{[%clk 0:00:45.2]} 20. Qc1 {[%clk 0:00:21.7]} 20... Be6 {[%clk 0:00:33.3]} 21.
Nh2 {[%clk 0:00:20.8]} 21... Nf5 {[%clk 0:00:32.6]} 22. Bg4 {[%clk 0:00:18.5]}
22... Nce7 {[%clk 0:00:16.9]} 23. Rfe1 {[%clk 0:00:17.7]} 23... Bc8 {[%clk
0:00:16.7]} 24. Bd2 {[%clk 0:00:16]} 24... e4 {[%clk 0:00:14.4]} 25. Bf4 {[%clk
0:00:14.7]} 25... Be5 {[%clk 0:00:12]} 26. Bxe5 {[%clk 0:00:14.4]} 26... Qxe5
{[%clk 0:00:12.9]} 27. Re2 {[%clk 0:00:12.1]} 27... Nh4 {[%clk 0:00:09.4]} 28.
Nd4 {[%clk 0:00:11.2]} 28... Qf6 {[%clk 0:00:06]} 29. Bxc8 {[%clk 0:00:10.6]}
29... Rxc8 {[%clk 0:00:06]} 30. Ng4 {[%clk 0:00:11]} 30... Qf7 {[%clk
0:00:05.4]} 31. Qe3 {[%clk 0:00:10.6]} 31... Neg6 {[%clk 0:00:05.1]} 32. Qg3
{[%clk 0:00:10.2]} 32... Nf5 {[%clk 0:00:04.6]} 33. Qh2 {[%clk 0:00:09.7]} 33...
Rfd8 {[%clk 0:00:04.4]} 34. Nxf5 {[%clk 0:00:09.7]} 34... Qxf5 {[%clk
0:00:05.3]} 35. b4 {[%clk 0:00:09.9]} 35... Nf4 {[%clk 0:00:05.6]} 36. Red2
{[%clk 0:00:09.4]} 36... h5 {[%clk 0:00:04.2]} 37. Ne3 {[%clk 0:00:09.1]} 37...
Qg5 {[%clk 0:00:03.9]} 38. Nxd5 {[%clk 0:00:08.7]} 38... Rxd5 {[%clk 0:00:02.3]}
39. Rxd5 {[%clk 0:00:08.4]} 39... Nxd5 {[%clk 0:00:03.2]} 40. Qd6 {[%clk
0:00:07.7]} 40... Nf6 {[%clk 0:00:02.7]} 41. Qe6+ {[%clk 0:00:07.4]} 41... Kh7
{[%clk 0:00:03.2]} 42. Qxc8 {[%clk 0:00:08]} 42... e3 {[%clk 0:00:03.8]} 43.
fxe3 {[%clk 0:00:07.3]} 43... Qxe3+ {[%clk 0:00:04.7]} 44. Kh1 {[%clk
0:00:06.9]} 44... Ne4 {[%clk 0:00:05.1]} 45. Qf5+ {[%clk 0:00:07.2]} 45... Kh6
{[%clk 0:00:04.7]} 46. Kh2 {[%clk 0:00:04.2]} 46... Qg3+ {[%clk 0:00:03.7]} 47.
Kg1 {[%clk 0:00:04.2]} 47... Qe3+ {[%clk 0:00:04.3]} 48. Kh2 {[%clk 0:00:04.4]}
48... Qg3+ {[%clk 0:00:04.5]} 49. Kg1 {[%clk 0:00:03.7]} 49... Qe3+ {[%clk
0:00:04.2]} 50. Kh2 {[%clk 0:00:03.7]} 1/2-1/2

[Event "*** Titled Tuesday Blitz"]
[Site "Chess.com"]
[Date "2020.11.10"]
[Round "5"]
[White "nitpicker"]
[Black "PlotnikovPavel"]
[Result "1-0"]
[WhiteElo "2232"]
[BlackElo "2456"]
[TimeControl "180+1"]
[EndTime "10:59:40 PST"]
[Termination "nitpicker won by checkmate"]

1. d4 {[%clk 0:03:00.9]} 1... Nf6 {[%clk 0:02:56.4]} 2. c4 {[%clk 0:03:00.7]}
2... g6 {[%clk 0:02:57.2]} 3. Nc3 {[%clk 0:03:00.2]} 3... Bg7 {[%clk 0:02:58.1]}
4. e4 {[%clk 0:02:59.1]} 4... O-O {[%clk 0:02:58.7]} 5. Be2 {[%clk 0:02:59.2]}
5... d6 {[%clk 0:02:55.1]} 6. Nf3 {[%clk 0:02:59]} 6... e5 {[%clk 0:02:54.2]} 7.
d5 {[%clk 0:02:58.3]} 7... Na6 {[%clk 0:02:52.8]} 8. Be3 {[%clk 0:02:56.7]} 8...
h6 {[%clk 0:02:41.3]} 9. Nd2 {[%clk 0:02:54]} 9... b6 {[%clk 0:02:38.8]} 10. a3
{[%clk 0:02:50.6]} 10... Nc5 {[%clk 0:02:37.6]} 11. b4 {[%clk 0:02:22]} 11...
Ncd7 {[%clk 0:02:27.2]} 12. Nb3 {[%clk 0:02:15.5]} 12... Nh7 {[%clk 0:02:14.1]}
13. O-O {[%clk 0:02:04]} 13... f5 {[%clk 0:02:13]} 14. f3 {[%clk 0:02:04.3]}
14... f4 {[%clk 0:02:12.7]} 15. Bf2 {[%clk 0:02:04.2]} 15... Ndf6 {[%clk
0:02:09.6]} 16. c5 {[%clk 0:02:01.1]} 16... g5 {[%clk 0:02:04.5]} 17. Rc1 {[%clk
0:01:52.3]} 17... Rf7 {[%clk 0:02:02.6]} 18. g4 {[%clk 0:01:23.5]} 18... fxg3
{[%clk 0:01:55.1]} 19. hxg3 {[%clk 0:01:23.2]} 19... h5 {[%clk 0:01:53.2]} 20.
Kg2 {[%clk 0:01:16.7]} 20... g4 {[%clk 0:01:49.9]} 21. Nd2 {[%clk 0:00:57.9]}
21... Ng5 {[%clk 0:01:40.5]} 22. f4 {[%clk 0:00:50.2]} 22... Nh3 {[%clk
0:01:39.5]} 23. Be3 {[%clk 0:00:47.5]} 23... Bh6 {[%clk 0:01:34.6]} 24. Nc4
{[%clk 0:00:44.5]} 24... b5 {[%clk 0:00:55.8]} 25. Na5 {[%clk 0:00:34.3]} 25...
a6 {[%clk 0:00:54.6]} 26. Qd2 {[%clk 0:00:33.3]} 26... exf4 {[%clk 0:00:46.8]}
27. gxf4 {[%clk 0:00:31]} 27... Ne8 {[%clk 0:00:21.5]} 28. Nc6 {[%clk
0:00:26.8]} 28... Qh4 {[%clk 0:00:21.4]} 29. e5 {[%clk 0:00:21.6]} 29... g3
{[%clk 0:00:12.2]} 30. Rh1 {[%clk 0:00:19.1]} 30... dxe5 {[%clk 0:00:05.2]} 31.
fxe5 {[%clk 0:00:10.7]} 31... Rf2+ {[%clk 0:00:03.3]} 32. Bxf2 {[%clk
0:00:08.1]} 32... Bxd2 {[%clk 0:00:03.7]} 33. Bxg3 {[%clk 0:00:06.4]} 33... Qg5
{[%clk 0:00:00.9]} 34. Rcf1 {[%clk 0:00:02.8]} 34... Bf4 {[%clk 0:00:01.8]} 35.
Rf3 {[%clk 0:00:02]} 35... Qxg3+ {[%clk 0:00:02.2]} 36. Rxg3+ {[%clk 0:00:01.7]}
36... Bxg3 {[%clk 0:00:03.1]} 37. Kxg3 {[%clk 0:00:02.1]} 37... Ng7 {[%clk
0:00:04]} 38. Rxh3 {[%clk 0:00:01.4]} 38... Bxh3 {[%clk 0:00:04.9]} 39. Kxh3
{[%clk 0:00:01.6]} 39... Re8 {[%clk 0:00:04.3]} 40. e6 {[%clk 0:00:01.9]} 40...
Nf5 {[%clk 0:00:04.2]} 41. Bd3 {[%clk 0:00:02]} 41... Ne3 {[%clk 0:00:04.4]} 42.
Bg6 {[%clk 0:00:02.2]} 42... Rf8 {[%clk 0:00:03.8]} 43. e7 {[%clk 0:00:02.2]}
43... Rf3+ {[%clk 0:00:04]} 44. Kh4 {[%clk 0:00:02.6]} 44... Rf4+ {[%clk
0:00:04.3]} 45. Kxh5 {[%clk 0:00:02.9]} 45... Nf1 {[%clk 0:00:03.4]} 46. e8=Q+
{[%clk 0:00:02.5]} 46... Kg7 {[%clk 0:00:04.1]} 47. Qe7+ {[%clk 0:00:02]} 47...
Kg8 {[%clk 0:00:03.5]} 48. Qh7+ {[%clk 0:00:01.8]} 48... Kf8 {[%clk 0:00:03.5]}
49. Qh8# {[%clk 0:00:01.5]} 1-0